bitfinex-derivatives/quotes_ETHF0:USTF0_20251116
["timestamp","ask_amount","ask_price","bid_price","bid_amount"]
[1763334222473,3.2078,3020.3,3019.4,0.00497257]
[1763334222674,3.21106119,3021.1,3019.4,0.00497257]
[1763334222980,3.21106119,3021.1,3016.3,11.94388]
[1763334222981,3.2078,3019.5,3017.9,3.2078]
[1763334223182,3.2078,3019.3,3018.4,3.2078]
[1763334223379,3.2078,3019.7,3018.7,3.2078]
[1763334223674,3.2078,3020.8,3019.6,3.74468]
[1763334223878,0.00407349,3020.8,3020.1,3.2078]
[1763334224069,0.00407349,3020.8,3020.5,3.2078]
[1763334224271,0.54571775,3020.8,3020.2,3.61898032]
[1763334224472,0.00903775,3020.8,3020.1,3.2078]
[1763334224670,3.2078,3021.9,3020.7,3.2078]
[1763334224869,3.2078,3022.5,3021.8,3.2078]
[1763334225084,4.6272,3024.0,3022.4,3.74419]
[1763334225377,3.2078,3023.6,3022.9,3.2078]
[1763334225572,3.21147534,3023.6,3022.9,3.21135782]
[1763334225774,0.00694484,3023.6,3023.0,40.8]
[1763334225976,0.00694484,3023.6,3023.4,3.2078]
[1763334226379,3.2078,3025.3,3023.5,3.72382388]
[1763334226580,3.2078,3025.7,3024.3,3.2078]
[1763334226782,3.2078,3024.8,3023.0,40.8]
[1763334227080,1.25710841,3026.7,3021.0,3.2078]
[1763334227081,3.2078,3023.1,3021.0,3.2078]
[1763334227277,3.2078,3023.1,3020.0,2.32624642]
[1763334227278,1.4194,3023.8,3021.8,3.2078]
[1763334227580,3.2078,3022.3,3021.7,0.00496426]
[1763334227775,3.2078,3021.8,3021.7,0.00496426]
[1763334227970,3.21188643,3021.8,3021.7,0.00898168]
[1763334228378,3.2078,3023.3,3021.7,6.00898168]
[1763334228582,4.6272,3023.8,3023.2,3.2078]
[1763334228781,3.2078,3023.9,3021.7,3.83747134]
[1763334228974,3.2078,3024.6,3022.5,2.32624642]
[1763334229179,1.4306,3025.0,3023.2,2.33121068]
[1763334229382,0.00238907,3025.0,3024.3,3.2078]
[1763334229575,6.0,3024.9,3019.1,2.29254119]
[1763334229775,3.2078,3019.9,3019.1,2.29254119]
[1763334229982,3.2078,3019.9,3019.2,3.81490426]
[1763334230172,3.2078,3020.3,3018.7,0.53705]
[1763334230377,3.2078,3020.3,3014.7,2.87461843]
[1763334230378,3.2078,3019.0,3018.3,0.53712]
[1763334230572,2.74183475,3019.0,3018.0,3.2078]
[1763334230777,3.2078,3020.9,3018.8,3.52294762]
[1763334230977,3.2078,3020.8,3019.9,3.2078]
[1763334231283,3.2078,3021.9,3019.5,3.2078]
[1763334231579,3.2078,3021.7,3020.7,3.2078]
[1763334231783,3.2078,3023.0,3021.5,3.2078]
[1763334232083,3.2078,3023.6,3022.4,3.2078]
[1763334232285,3.2078,3023.1,3021.0,3.2078]
[1763334232590,3.2078,3024.5,3022.9,3.2078]
[1763334232777,3.2078,3024.9,3023.3,0.53624]
[1763334232974,3.2078,3024.9,3023.2,3.2078]
[1763334233179,0.5365,3021.8,3018.5,3.2078]
[1763334233379,0.53722,3017.8,3017.0,3.2078]
[1763334233580,3.2078,3017.3,3016.8,1.4423]
[1763334233886,2.34084122,3020.2,3017.6,3.2078]
[1763334233887,0.0346,3018.7,3017.6,3.2078]
[1763334234084,3.2078,3020.8,3019.2,1.4423]
[1763334234284,3.2078,3022.8,3020.6,3.2078]
[1763334234486,3.2078,3022.4,3021.0,3.2078]
[1763334234681,3.2078,3021.9,3020.7,6.69877915]
[1763334234987,3.2078,3024.4,3022.5,1.4423]
[1763334235179,3.2078,3022.6,3020.8,3.49097915]
[1763334235377,4.22824576,3024.8,3020.6,2.34084122]
[1763334235578,3.2078,3024.9,3023.3,3.2078]
[1763334235779,3.2078,3024.1,3023.4,40.8]
[1763334235982,3.2078,3024.9,3023.4,40.8]
[1763334236188,2.34084122,3027.1,3023.4,44.0078]
[1763334236382,3.2078,3025.2,3023.5,8.12513164]
[1763334236684,2.34084122,3027.1,3023.4,40.8]
[1763334236685,3.2078,3025.1,3024.1,3.2078]
[1763334236881,3.2078,3025.8,3024.2,3.2078]
[1763334237186,3.2078,3025.3,3024.6,3.2078]
[1763334237386,3.2078,3026.7,3025.1,3.2078]
[1763334237582,3.2078,3025.5,3025.0,1.4423]
[1763334237888,3.2078,3025.8,3024.4,3.2078]
[1763334238082,3.2078,3025.3,3024.1,0.53609]
[1763334238382,3.2078,3024.8,3024.2,40.8]
[1763334238589,0.00496426,3024.6,3024.1,3.2078]
[1763334238787,3.2078,3024.3,3024.0,1.4423]
[1763334238988,3.2078,3024.5,3024.2,40.8]
[1763334239185,0.00496426,3024.6,3024.2,40.8]
[1763334239380,3.2078,3024.3,3023.9,0.00496426]
[1763334239686,3.2078,3025.3,3024.0,4.6501]
[1763334239885,3.2078,3025.8,3024.6,3.2078]
[1763334240089,3.2078,3026.7,3025.7,3.2078]
[1763334240388,3.2078,3027.8,3026.4,3.2078]
[1763334240791,3.2078,3026.7,3025.5,3.2078]
[1763334240984,3.2078,3025.6,3024.1,3.2078]
[1763334241184,3.2078,3025.2,3024.1,0.00315088]
[1763334241389,0.536,3024.7,3024.5,0.00495589]
[1763334241586,0.53607,3024.3,3024.1,0.00315088]
[1763334241784,3.2078,3024.2,3024.1,0.00315088]
[1763334241985,0.00493637,3025.2,3024.1,3.21095088]
[1763334242188,0.00313852,3025.6,3024.7,3.2078]
[1763334242390,3.2078,3027.0,3025.5,3.2078]
[1763334242579,3.2078,3027.0,3024.8,2.34084122]
[1763334242580,3.2078,3027.4,3025.0,3.2078]
[1763334242886,3.2078,3027.4,3025.6,3.79524334]
[1763334243088,3.2078,3026.1,3025.1,6.73414878]
[1763334243287,3.2078,3027.1,3026.0,3.2078]
[1763334243486,3.2078,3029.1,3026.7,3.2078]
[1763334243684,0.03874862,3028.7,3027.5,3.2078]
[1763334243885,0.53536,3028.3,3027.1,3.2078]
[1763334244185,0.53536,3028.3,3026.7,0.0030203]
[1763334244186,3.2078,3028.6,3027.2,6.79784192]
[1763334244382,0.03874862,3028.7,3028.5,0.5353]
[1763334244581,3.2078,3029.7,3028.5,0.53531]
[1763334244785,3.2078,3029.7,3028.6,3.26714264]
[1763334244983,3.2078,3030.5,3028.8,3.2078]
[1763334245188,3.2078,3030.1,3028.7,3.2078]
[1763334245392,3.2078,3030.1,3028.9,3.09893666]
[1763334245583,3.2078,3030.1,3029.1,3.2078]
[1763334245782,0.53507,3030.0,3029.2,40.8]
[1763334245988,3.2078,3030.1,3029.2,40.8]
[1763334246384,0.53529,3028.7,3027.5,3.2078]
[1763334246590,3.2078,3029.3,3027.5,3.2078]
[1763334246791,3.2078,3029.3,3028.5,4.02614133]
[1763334246983,3.2078,3030.5,3028.4,44.0078]
[1763334247184,0.53517,3029.4,3028.6,3.49084133]
[1763334247384,0.53516,3029.5,3028.5,3.49084133]
[1763334247584,3.2078,3029.5,3028.4,40.8]
[1763334247793,3.2078,3029.5,3028.7,3.2078]
[1763334247989,3.2078,3029.5,3025.2,11.90864]
[1763334247990,0.53526,3028.8,3028.5,7.80498799]
[1763334248188,3.2078,3029.2,3027.5,3.2078]
[1763334248393,3.2078,3030.0,3029.2,0.53518]
[1763334248700,3.20085196,3030.3,3029.3,40.8]
[1763334248892,3.20085196,3030.3,3029.7,0.53509]
[1763334249089,3.2078,3030.9,3029.4,10.20354731]
[1763334249291,3.2078,3030.9,3029.8,3.18156518]
[1763334249489,3.2078,3030.4,3029.4,0.00365029]
[1763334249696,3.21145228,3030.9,3029.5,3.55147886]
[1763334249897,3.21145228,3030.9,3029.9,3.2078]
[1763334250286,0.53502,3030.2,3030.1,0.00495589]
[1763334250593,0.53502,3030.2,3029.4,0.00365029]
[1763334250594,3.2078,3030.2,3029.4,0.00365029]
[1763334250795,3.2078,3030.3,3029.4,0.00365029]
[1763334250988,3.2078,3029.7,3029.4,0.00365029]
[1763334251188,0.00365228,3030.9,3029.6,3.2078]
[1763334251390,14.30259318,3034.1,3030.6,3.2078]
[1763334251391,3.2078,3031.8,3030.6,3.2078]
[1763334251793,3.2078,3033.6,3031.7,0.53474]
[1763334251997,3.2078,3033.6,3032.3,3.2078]
[1763334252191,3.2078,3032.6,3031.8,7.803756]
[1763334252395,3.2078,3032.8,3031.5,3.2078]
[1763334252594,3.2078,3031.9,3030.9,0.00495589]
[1763334252796,3.2078,3031.5,3030.9,0.00495589]
[1763334253092,3.2078,3032.1,3031.0,4.255466]
[1763334253295,3.2078,3031.3,3031.0,0.00285999]
[1763334253603,3.2078,3031.3,3029.7,11.896]
[1763334253894,3.2078,3030.3,3029.7,11.73827888]
[1763334254097,3.2078,3029.8,3028.7,3.2078]
[1763334254298,3.2078,3030.0,3028.7,3.2078]
[1763334254499,0.00259276,3030.0,3028.8,3.82179724]
[1763334254695,0.00492674,3029.7,3029.1,3.2078]
[1763334255090,0.00259276,3030.0,3029.1,3.2078]
[1763334255291,3.2078,3031.2,3029.6,3.2078]
[1763334255488,14.07243507,3034.7,3029.7,9.241]
[1763334255701,0.11981277,3032.4,3031.6,40.8]
[1763334256092,3.2078,3032.3,3031.6,40.8]
[1763334256293,0.00282132,3032.3,3031.7,3.49669183]
[1763334256789,3.2078,3033.5,3031.9,3.2078]
[1763334256993,3.2078,3032.3,3031.7,0.00494715]
[1763334257193,3.2078,3032.7,3032.0,3.68709639]
[1763334257394,3.2078,3033.6,3032.0,6.89489639]
[1763334257596,3.2078,3033.6,3032.1,4.23379728]
[1763334257897,0.00290749,3033.6,3032.1,3.60951404]
[1763334258091,3.2078,3034.9,3033.5,3.2078]
[1763334258291,3.2078,3034.5,3033.5,3.2078]
[1763334258491,0.53434,3034.1,3033.9,0.00494715]
[1763334258688,3.2078,3034.1,3032.1,3.2078]
[1763334258886,0.53436,3034.0,3032.1,3.2078]
[1763334259091,3.21119649,3034.0,3032.6,44.40203353]
[1763334259294,3.2078,3033.1,3032.6,40.8]
[1763334259598,3.2078,3033.4,3032.7,3.60203353]
[1763334259802,3.2078,3033.0,3032.1,0.0027489]
[1763334260004,3.2078,3032.2,3031.0,3.2078]
[1763334260300,0.00494715,3033.2,3031.1,40.8]
[1763334260301,3.2078,3031.6,3031.1,40.8]
[1763334260494,3.2078,3031.6,3030.6,3.58221153]
[1763334260700,3.2078,3031.2,3030.1,3.2078]
[1763334260998,3.2078,3030.9,3030.3,0.00494715]
[1763334261697,3.2078,3032.3,3030.5,3.2078]
[1763334261897,3.2078,3033.6,3031.7,3.2078]
[1763334262105,3.2078,3033.0,3031.7,3.2078]
[1763334262295,3.2078,3033.0,3031.8,3.80144946]
[1763334262598,3.2078,3032.2,3031.0,12.036]
[1763334262797,0.00494715,3031.9,3031.3,0.00494715]
[1763334263004,3.2078,3031.8,3031.3,0.00494715]
[1763334263196,0.00494715,3031.9,3031.3,0.00494715]
[1763334263393,3.2078,3031.7,3031.3,0.00494715]
[1763334263704,3.2078,3031.7,3030.5,11.885]
[1763334264006,0.00494715,3031.9,3031.1,3.2078]
[1763334264304,0.00389744,3032.2,3031.9,0.53471]
[1763334264491,0.00389744,3032.2,3031.8,21.094]
[1763334265206,0.00389744,3032.2,3032.1,3.2078]
[1763334265499,0.00389744,3032.2,3031.8,0.00494715]
[1763334265704,0.00494715,3032.5,3032.1,3.79180422]
[1763334266001,4.715e-05,3032.5,3032.1,3.2078]
[1763334266193,3.2078,3032.4,3031.8,0.00494715]
[1763334266395,3.2078,3031.9,3031.8,0.00494715]
[1763334266591,3.2078,3031.9,3031.1,3.2078]
[1763334266804,3.2078,3031.9,3031.2,40.8]
[1763334267095,3.21084884,3031.9,3031.2,40.8]
[1763334267304,3.21084884,3031.9,3031.3,3.60659245]
[1763334267499,0.53465,3032.3,3031.7,3.2078]
[1763334267699,3.2078,3032.1,3031.3,0.00494715]
[1763334267893,3.2078,3031.7,3030.0,3.2078]
[1763334268099,3.2078,3030.8,3030.0,3.2078]
[1763334268303,3.2078,3030.4,3029.6,3.2078]
[1763334268497,3.2078,3030.4,3028.9,0.53523]
[1763334268498,3.21183772,3030.4,3029.0,3.2078]
[1763334268700,3.2078,3029.3,3028.0,3.2078]
[1763334269001,3.2078,3028.4,3027.4,40.8]
[1763334269301,0.00494715,3029.0,3026.9,3.2078]
[1763334269302,3.2078,3028.0,3026.9,3.2078]
[1763334269495,3.21119759,3028.0,3026.9,3.21194013]
[1763334269898,3.2078,3027.9,3027.0,3.2078]
[1763334270103,3.2078,3027.9,3027.1,0.00494715]
[1763334270606,0.00339759,3028.0,3027.4,3.2078]
[1763334271004,3.2078,3027.5,3027.1,0.00494715]
[1763334271911,6.0,3027.4,3026.5,3.2078]
[1763334272099,6.0,3027.4,3024.9,3.2078]
[1763334272100,3.2078,3026.6,3024.9,3.2078]
[1763334272303,3.2078,3025.8,3024.4,3.2078]
[1763334272497,3.2078,3024.8,3024.1,3.50679186]
[1763334272702,3.2078,3024.8,3023.5,3.2078]
[1763334273103,0.0049554,3024.5,3023.8,0.0049554]
[1763334273506,0.0049554,3024.5,3024.0,3.2078]
[1763334273801,0.00276363,3024.8,3024.1,3.68202145]
[1763334273999,3.2078,3025.2,3024.2,9.2078]
[1763334274300,3.2078,3025.2,3023.5,21.10103587]
[1763334274301,3.2078,3027.0,3025.1,3.2078]
[1763334274505,3.2078,3026.1,3024.7,3.2078]
[1763334274698,3.2078,3026.5,3025.5,0.53584]
[1763334274899,2.3288908,3029.3,3025.7,0.0049554]
[1763334274900,0.0049554,3026.3,3025.7,0.0049554]
[1763334275205,0.00881541,3026.3,3025.8,3.2078]
[1763334275404,0.00881541,3026.3,3025.7,0.00860795]
[1763334275605,0.00881541,3026.3,3026.1,3.2078]
[1763334275806,0.00881541,3026.3,3026.2,40.8]
[1763334276004,3.2078,3027.8,3026.2,44.48338156]
[1763334276208,3.2078,3026.9,3026.2,40.8]
[1763334276502,3.2078,3027.3,3026.6,3.2078]
[1763334276706,0.53555,3027.2,3026.2,40.8]
[1763334276901,3.2078,3026.8,3026.2,40.8]
[1763334277106,0.0049554,3027.0,3026.3,3.49021294]
[1763334277311,0.00324366,3027.2,3026.3,6.69801294]
[1763334277604,0.53559,3027.0,3026.7,3.2078]
[1763334277806,3.21104366,3027.2,3026.4,3.2078]
[1763334278205,3.2078,3026.5,3025.7,3.21640795]
[1763334278411,3.2078,3025.8,3025.7,0.00860795]
[1763334278815,3.2078,3025.8,3025.1,40.8]
[1763334279107,3.2078,3025.8,3025.1,44.0078]
[1763334279504,3.2078,3025.4,3024.5,3.2078]
[1763334279708,0.0049554,3025.3,3024.6,0.0049554]
[1763334279904,0.0049554,3025.3,3024.7,40.8]
[1763334280109,0.0049554,3025.3,3024.9,3.2078]
[1763334280315,0.0049554,3025.3,3024.8,3.73979865]
[1763334280708,0.0049554,3025.3,3024.6,0.0049554]
[1763334281307,3.2078,3025.0,3024.6,0.0049554]
[1763334281514,3.2078,3025.0,3024.5,40.80243975]
[1763334281515,1.4643,3024.8,3023.2,3.2078]
[1763334281709,3.2078,3024.0,3023.2,3.2078]
[1763334282014,3.2078,3024.0,3023.1,3.2078]
[1763334282403,1.4643,3024.8,3023.2,0.0049554]
[1763334282404,3.2078,3023.6,3023.2,0.0049554]
[1763334283009,0.0049554,3023.9,3023.2,0.0049554]
[1763334283212,0.0049554,3023.9,3023.4,3.2078]
[1763334283411,3.2078,3024.0,3023.4,3.2078]
[1763334283606,0.00388445,3025.0,3023.9,3.2078]
[1763334283805,0.00388445,3025.0,3024.5,3.2078]
[1763334284104,3.2078,3024.6,3023.7,3.2078]
[1763334284305,3.2078,3023.8,3023.4,11.897]
[1763334284506,0.0049554,3023.9,3023.4,11.897]
[1763334284704,0.0049554,3023.9,3023.5,3.2078]
[1763334284910,0.0049554,3023.9,3023.4,11.897]
[1763334284911,3.2078,3023.8,3023.4,11.897]
[1763334285113,3.2078,3023.8,3023.2,0.0049554]
[1763334285305,3.2078,3023.3,3022.8,24.2198]
[1763334285505,0.5363,3023.0,3022.8,21.012]
[1763334285714,3.2078,3022.9,3020.5,20.927]
[1763334286013,3.2078,3021.6,3020.6,40.8]
[1763334286212,3.2078,3021.6,3020.5,20.927]
[1763334286514,3.2078,3021.2,3020.8,0.00496384]
[1763334286717,0.00496384,3021.4,3020.8,40.80496384]
[1763334287414,3.2078,3021.3,3020.8,0.00496384]
[1763334287708,3.2078,3020.9,3020.8,0.00496384]
[1763334288217,3.2078,3020.9,3018.5,3.2078]
[1763334288511,3.2078,3019.8,3019.1,3.74478]
[1763334289017,3.2078,3019.8,3019.1,3.2078]
[1763334289215,3.2078,3019.4,3019.1,0.00851439]
[1763334289408,3.21276384,3019.8,3019.2,3.2078]
[1763334289615,0.00496384,3019.8,3019.2,6.94756558]
[1763334289810,0.00496384,3019.8,3019.2,3.2078]
[1763334290407,0.00914188,3019.8,3019.2,3.2078]
[1763334290605,3.2078,3020.6,3019.6,3.2078]
[1763334290915,14.31753119,3024.9,3020.5,3.2078]
[1763334290916,3.2078,3022.1,3020.5,3.2078]
[1763334291104,3.2078,3022.6,3021.5,3.2078]
[1763334291310,3.2078,3023.3,3021.9,3.2078]
[1763334291512,2.78359865,3026.6,3022.9,3.2078]
[1763334291719,3.2078,3024.2,3024.1,0.00496384]
[1763334291907,0.00496384,3024.8,3024.1,0.00496384]
[1763334292110,3.2078,3024.7,3024.1,0.00496384]
[1763334292412,3.2078,3024.2,3022.9,0.00328748]
[1763334292809,3.2078,3024.2,3023.5,3.2078]
[1763334293007,3.2078,3024.2,3023.1,24.0438]
[1763334293208,3.2078,3023.7,3023.3,0.00496384]
[1763334293409,0.00256479,3023.7,3023.3,0.00496384]
[1763334293721,3.21036479,3023.7,3023.3,0.00496384]
[1763334294411,6.0,3023.6,3021.5,3.2078]
[1763334294611,6.0,3023.6,3019.5,11.91]
[1763334294612,3.2078,3023.2,3021.9,3.2078]
[1763334295008,3.2078,3023.2,3022.5,3.2078]
[1763334295212,3.2078,3022.6,3021.6,3.2078]
[1763334295513,3.2078,3022.6,3019.5,11.91]
[1763334295514,3.2078,3021.8,3020.1,3.2078]
[1763334295714,3.2078,3021.3,3020.6,3.2078]
[1763334295915,3.2078,3021.3,3020.6,0.00496384]
[1763334296213,0.00496384,3022.4,3020.6,0.00496384]
[1763334296214,3.2078,3020.7,3020.6,0.00496384]
[1763334296722,9.2078,3020.7,3019.6,3.2078]
[1763334296917,3.2078,3020.3,3019.6,0.0023877]
[1763334297217,3.2078,3020.3,3019.6,3.2101877]
[1763334297710,0.00496384,3020.3,3019.6,0.00565247]
[1763334297910,0.00496384,3020.3,3019.7,3.2078]
[1763334298119,0.00496384,3020.3,3019.6,0.00565247]
[1763334299021,3.2078,3019.9,3019.6,0.00565247]
[1763334299715,6.0,3019.8,3018.0,4.6373]
[1763334299910,3.2078,3018.9,3018.0,3.2078]
[1763334300312,3.2078,3019.9,3018.8,3.2078]
[1763334300513,0.0036411,3020.7,3019.2,1.5229]
[1763334300708,0.0036411,3020.7,3019.3,20.699]
[1763334300709,3.2078,3020.6,3019.3,20.699]
[1763334301024,0.00496384,3020.3,3019.4,3.2078]
[1763334301211,3.2078,3019.8,3019.3,0.00341861]
[1763334301408,3.2078,3019.4,3017.7,3.2078]
[1763334301614,0.00496384,3020.3,3015.3,3.2078]
[1763334301615,3.2078,3017.9,3015.3,3.2078]
[1763334301808,3.2078,3017.9,3014.1,4.39751843]
[1763334301809,3.2078,3016.3,3014.1,3.2078]
[1763334302019,3.2078,3015.6,3013.2,3.2078]
[1763334302213,3.2078,3013.3,3011.1,3.2078]
[1763334302415,3.2078,3011.4,3008.6,2.26982152]
[1763334302611,0.0036562,3013.3,3009.5,3.2078]
[1763334302612,3.2078,3010.2,3009.5,3.2078]
[1763334302817,1.15470562,3014.3,3009.0,4.7307]
[1763334302818,3.2078,3011.0,3009.6,8.78652484]
[1763334303017,3.2078,3010.5,3009.7,5.57872484]
[1763334303220,3.2078,3010.4,3009.7,5.57872484]
[1763334303520,2.78359865,3014.6,3009.7,5.57872484]
[1763334303521,3.2078,3010.1,3009.8,2.3622251]
[1763334303712,2.78359865,3014.6,3009.8,2.3622251]
[1763334303713,3.2078,3012.1,3009.9,2.3622251]
[1763334303913,3.2078,3011.7,3010.4,3.2078]
[1763334304114,1.15470562,3016.3,3009.7,0.00370591]
[1763334304115,3.2078,3012.5,3012.0,1.5229]
[1763334304315,3.2078,3013.7,3012.0,1.5229]
[1763334304515,3.2078,3014.5,3014.0,1.5229]
[1763334304816,3.21138695,3014.5,3014.0,1.5229]
[1763334305020,3.2078,3016.3,3014.2,0.53784]
[1763334305219,3.2078,3017.3,3015.6,1.5229]
[1763334305418,3.2078,3017.7,3015.8,3.2078]
[1763334305618,3.2078,3017.7,3016.2,0.096]
[1763334305821,3.2078,3016.3,3016.2,0.096]
[1763334306019,3.2078,3016.8,3016.2,0.09848212]
[1763334306223,3.2078,3017.2,3016.3,3.73737228]
[1763334306522,0.00497257,3016.6,3016.2,0.09848212]
[1763334306823,3.2078,3018.3,3016.5,40.8]
[1763334307031,0.00277902,3018.3,3017.2,3.2078]
[1763334307319,0.00277902,3018.3,3016.6,8.04030354]
[1763334307320,3.2078,3018.0,3016.6,8.04030354]
[1763334307520,0.00277902,3018.3,3017.8,0.5372]
[1763334307717,3.2078,3019.6,3018.2,3.2078]
[1763334308124,3.2078,3019.0,3018.4,1.5229]
[1763334308327,3.2078,3019.7,3018.9,3.2078]
[1763334308525,2.33139403,3021.4,3018.5,40.8]
[1763334308526,3.2078,3019.2,3018.5,44.29571495]
[1763334308725,3.74485,3018.8,3018.5,0.00324945]
[1763334308925,9.2078,3018.8,3016.5,3.2078]
[1763334309236,3.2078,3018.2,3017.1,3.2078]
[1763334309523,3.2078,3018.8,3017.6,3.2078]
[1763334309726,3.2078,3017.7,3017.2,3.14710343]
[1763334309928,3.2078,3017.3,3014.7,3.2078]
[1763334310120,0.53757,3015.9,3014.7,3.2078]
[1763334310423,3.2078,3016.3,3014.7,3.2078]
[1763334310818,0.00497257,3015.8,3015.2,0.00497257]
[1763334311024,3.2078,3016.7,3016.2,1.5229]
[1763334311220,3.2078,3017.5,3016.2,1.5229]
[1763334311524,3.2078,3017.3,3016.0,3.2078]
[1763334311726,14.53694597,3020.3,3017.0,3.2078]
[1763334311727,3.2078,3018.6,3017.0,3.2078]
[1763334311916,3.2078,3018.6,3017.6,3.2078]
[1763334312122,0.00293419,3018.6,3018.5,3.2078]
[1763334312316,0.00293419,3018.6,3018.0,3.2078]
[1763334312826,3.2078,3018.1,3016.4,3.2078]
[1763334313027,3.2078,3018.1,3014.0,1.5229]
[1763334313028,3.2078,3016.8,3015.8,3.2078]
[1763334313230,3.2078,3016.8,3015.4,3.2078]
[1763334313930,0.00497257,3016.4,3016.3,3.2078]
[1763334314119,0.53755,3016.0,3015.8,0.00497257]
[1763334314320,0.00927087,3016.4,3015.4,0.00341761]
[1763334314321,3.2078,3016.2,3015.4,0.00341761]
[1763334314631,3.74539,3015.8,3015.4,0.00341761]
[1763334314826,3.21707087,3016.4,3015.4,0.00341761]
[1763334315033,3.74535,3016.0,3015.4,0.00341761]
[1763334315228,0.53783,3014.4,3014.2,3.2078]
[1763334315431,0.53773,3014.9,3014.2,3.2078]
[1763334315729,0.0042983,3016.4,3012.0,13.4559]
[1763334315730,0.0042983,3016.4,3015.2,3.2078]
[1763334315929,3.2078,3018.9,3016.3,3.2078]
[1763334316133,3.2078,3018.4,3016.9,3.2078]
[1763334316320,3.2078,3018.0,3016.9,3.2078]
[1763334316527,0.53704,3018.8,3017.4,3.2078]
[1763334316723,3.2078,3017.9,3017.3,3.2078]
[1763334316927,0.00497257,3018.4,3018.3,0.53713]
[1763334317125,3.2078,3019.4,3017.8,3.21277257]
[1763334317330,3.2078,3019.4,3018.4,3.2078]
[1763334317633,3.2078,3020.5,3019.1,3.2078]
[1763334317829,3.2078,3020.5,3019.7,3.2078]
[1763334318034,3.21067563,3020.5,3019.7,3.21043432]
[1763334318232,0.53683,3020.0,3019.8,0.00497257]
[1763334318421,0.00497257,3020.4,3017.9,44.0078]
[1763334318622,0.00497257,3020.4,3018.3,3.2078]
[1763334318928,0.00497257,3020.4,3017.9,43.13139403]
[1763334318929,0.00497257,3020.4,3019.9,3.2078]
[1763334319431,0.00497257,3020.4,3020.2,0.53677]
[1763334319624,0.00024131,3020.5,3020.0,3.54724398]
[1763334319829,0.00024131,3020.5,3020.1,40.8]
[1763334320136,3.2078,3022.1,3020.4,3.2078]
[1763334320433,3.2078,3022.1,3020.1,45.16021777]
[1763334320434,3.2078,3023.0,3021.6,0.53653]
[1763334320632,3.2078,3024.1,3022.8,0.53632]
[1763334320825,3.2078,3024.1,3021.9,1.3933]
[1763334320826,3.2078,3024.1,3022.4,12.46839]
[1763334321027,0.00496326,3023.8,3023.1,0.00496326]
[1763334321227,0.00269,3024.1,3023.1,0.00496326]
[1763334321436,0.00269,3024.1,3023.3,0.53624]
[1763334321633,3.2078,3024.6,3024.0,0.53611]
[1763334321931,13.8201686,3028.2,3023.4,8.04068935]
[1763334321932,3.2078,3025.0,3023.4,8.04068935]
[1763334322138,3.2078,3023.9,3023.3,3.52259331]
[1763334322337,3.2078,3024.5,3023.5,3.52259331]
[1763334322531,2.33139403,3027.1,3023.5,3.52259331]
[1763334322532,4.679e-05,3023.9,3023.5,3.52259331]
[1763334322728,3.2078,3025.2,3023.8,3.2078]
[1763334322927,3.2078,3025.2,3022.8,2.33139403]
[1763334322928,3.2078,3025.2,3024.4,0.53604]
[1763334323240,3.2078,3025.8,3025.0,3.2078]
[1763334323723,3.2078,3025.8,3025.0,3.21046534]
[1763334323930,0.00334932,3025.8,3025.6,0.53581]
[1763334324128,3.2078,3026.4,3025.6,0.53581]
[1763334324435,3.2078,3026.4,3025.4,3.2078]
[1763334324637,3.2078,3027.0,3026.3,3.2078]
[1763334324833,3.2078,3027.9,3026.5,0.53566]
[1763334325035,3.2078,3028.3,3027.2,3.2078]
[1763334325229,3.2078,3027.9,3027.3,40.8]
[1763334325435,0.00235486,3028.3,3027.3,40.8]
[1763334325636,0.00235486,3028.3,3027.7,3.2078]
[1763334325935,0.00235486,3028.3,3028.2,3.2078]
[1763334326135,0.00235486,3028.3,3027.8,3.74472124]
[1763334326437,3.2078,3030.0,3028.1,3.2078]
[1763334326637,3.2078,3030.0,3029.1,3.2078]
[1763334327032,3.2078,3030.5,3029.6,3.2078]
[1763334327335,3.2078,3030.5,3030.2,3.2078]
[1763334327336,0.00367515,3030.5,3030.2,3.2078]
[1763334327938,0.00367515,3030.5,3029.7,0.00495499]
[1763334328130,0.00367515,3030.5,3029.9,3.2078]
[1763334328331,0.00367515,3030.5,3030.3,3.2078]
[1763334328530,3.2078,3031.8,3030.3,3.74279]
[1763334328838,3.2078,3031.8,3030.8,3.2078]
[1763334329134,14.31761753,3033.4,3030.7,0.00495499]
[1763334329135,3.2078,3031.5,3030.7,0.00495499]
[1763334329333,3.2078,3032.0,3030.7,0.00495499]
[1763334329534,0.53487,3031.1,3030.7,0.00495499]
[1763334329737,0.53496,3030.6,3029.6,0.0034614]
[1763334329928,0.00336799,3032.0,3029.9,3.2078]
[1763334329929,3.2078,3030.8,3029.9,3.2078]
[1763334330130,0.53476,3031.7,3029.9,3.2078]
[1763334330434,3.2078,3031.9,3031.1,3.2078]
[1763334330633,3.2078,3031.9,3030.0,7.94728605]
[1763334330634,0.53482,3031.4,3031.2,0.00495499]
[1763334330836,0.00492739,3031.8,3031.3,40.8]
[1763334331030,1.0716,3034.5,3031.3,40.8]
[1763334331031,3.2078,3032.7,3031.3,48.69416979]
[1763334331231,3.2078,3033.4,3031.7,3.2078]
[1763334331436,3.2078,3033.4,3032.5,3.2078]
[1763334331640,3.2078,3034.1,3033.0,3.2078]
[1763334331841,3.2078,3034.6,3033.9,3.2078]
[1763334332035,3.21028363,3034.6,3033.9,3.21169638]
[1763334332236,3.2078,3034.2,3033.1,3.2078]
[1763334332439,3.2078,3033.7,3032.0,3.2078]
[1763334332645,3.2078,3034.4,3032.8,3.2078]
[1763334332942,0.00248363,3034.6,3033.4,3.2078]
[1763334333139,3.2078,3034.3,3033.4,3.2078]
[1763334333340,0.00248363,3034.6,3033.4,3.21188125]
[1763334333544,3.2078,3033.8,3033.5,0.00494666]
[1763334333733,3.2078,3033.8,3031.5,0.53479]
[1763334333935,0.00491887,3034.2,3032.9,40.8]